[Event "Early-Titled-Tuesday-Blitz-September-05-2023"]
[Site "Chess.com"]
[Date "2023.09.05"]
[Round "10"]
[White "FGHSMN"]
[Black "Vuk2000"]
[Result "0-1"]
[WhiteElo "2897"]
[BlackElo "2763"]
[TimeControl "180+1"]
[EndTime "9:54:07 PDT"]
[Termination "Vuk2000 won by resignation"]

1. b3 {[%clk 0:03:00.9]} 1... e5 {[%clk 0:03:00]} 2. Bb2 {[%clk 0:03:01.1]} 2...
Nc6 {[%clk 0:03:00.6]} 3. c4 {[%clk 0:03:01.8]} 3... g6 {[%clk 0:03:00.4]} 4. e3
{[%clk 0:03:02.5]} 4... Bg7 {[%clk 0:03:00.3]} 5. Nf3 {[%clk 0:03:03.3]} 5...
Nf6 {[%clk 0:02:55.8]} 6. Nxe5 {[%clk 0:02:59.2]} 6... O-O {[%clk 0:02:40.2]} 7.
Nxc6 {[%clk 0:02:57.7]} 7... bxc6 {[%clk 0:02:37.1]} 8. Be2 {[%clk 0:02:58.1]}
8... Re8 {[%clk 0:02:28.8]} 9. O-O {[%clk 0:02:57.1]} 9... a5 {[%clk 0:02:28.6]}
10. Nc3 {[%clk 0:02:56.5]} 10... Qe7 {[%clk 0:02:26.8]} 11. d4 {[%clk
0:02:51.9]} 11... d6 {[%clk 0:02:24]} 12. Bf3 {[%clk 0:02:47.3]} 12... Bd7
{[%clk 0:02:23.2]} 13. Rc1 {[%clk 0:02:44]} 13... h5 {[%clk 0:02:19.9]} 14. h3
{[%clk 0:02:42.7]} 14... Nh7 {[%clk 0:02:12.8]} 15. Ne4 {[%clk 0:02:31.5]} 15...
Qh4 {[%clk 0:01:55.1]} 16. Nd2 {[%clk 0:02:07.9]} 16... Ng5 {[%clk 0:01:34.7]}
17. Re1 {[%clk 0:01:56.8]} 17... Bh6 {[%clk 0:00:53.6]} 18. Qe2 {[%clk
0:01:43.9]} 18... Bxh3 {[%clk 0:00:42.4]} 19. gxh3 {[%clk 0:01:37]} 19... Nxh3+
{[%clk 0:00:43.3]} 20. Kf1 {[%clk 0:01:37.6]} 20... Nf4 {[%clk 0:00:38.3]} 21.
Qd1 {[%clk 0:01:25.8]} 21... Nd3 {[%clk 0:00:31.9]} 22. Qe2 {[%clk 0:01:13.8]}
22... Nf4 {[%clk 0:00:31.9]} 23. Qd1 {[%clk 0:00:57.3]} 23... Nd3 {[%clk
0:00:23.3]} 24. Re2 {[%clk 0:00:57.9]} 24... Bxe3 {[%clk 0:00:10.9]} 25. fxe3
{[%clk 0:00:55.8]} 25... Rxe3 {[%clk 0:00:11.6]} 26. Rc3 {[%clk 0:00:42.7]}
26... Nxb2 {[%clk 0:00:06.9]} 27. Qc2 {[%clk 0:00:38.8]} 27... Qh3+ {[%clk
0:00:06.3]} 28. Kg1 {[%clk 0:00:33.2]} 28... Qg3+ {[%clk 0:00:02.7]} 29. Kf1
{[%clk 0:00:22.2]} 29... Qh3+ {[%clk 0:00:02]} 30. Bg2 {[%clk 0:00:22.9]} 30...
Rxc3 {[%clk 0:00:01.7]} 31. Qxb2 {[%clk 0:00:23.7]} 31... Qg3 {[%clk 0:00:01.8]}
32. Ne4 {[%clk 0:00:22.2]} 32... Qf4+ {[%clk 0:00:02.2]} 33. Rf2 {[%clk
0:00:20.7]} 33... Qc1+ {[%clk 0:00:02.4]} 34. Ke2 {[%clk 0:00:21.5]} 34... Qxb2+
{[%clk 0:00:02.6]} 0-1

[Event "Early-Titled-Tuesday-Blitz-September-05-2023"]
[Site "Chess.com"]
[Date "2023.09.05"]
[Round "10"]
[White "suyu28"]
[Black "tteshan"]
[Result "1-0"]
[WhiteElo "2724"]
[BlackElo "2565"]
[TimeControl "180+1"]
[EndTime "9:54:07 PDT"]
[Termination "suyu28 won by resignation"]

1. d4 {[%clk 0:02:52.4]} 1... d5 {[%clk 0:02:59.8]} 2. c4 {[%clk 0:02:52.8]}
2... dxc4 {[%clk 0:03:00.7]} 3. Nf3 {[%clk 0:02:52.2]} 3... Nf6 {[%clk
0:03:01.2]} 4. e3 {[%clk 0:02:52.4]} 4... Bg4 {[%clk 0:03:01.9]} 5. h3 {[%clk
0:02:49.6]} 5... Bh5 {[%clk 0:03:01.9]} 6. Bxc4 {[%clk 0:02:46.2]} 6... e6
{[%clk 0:03:01.9]} 7. Nc3 {[%clk 0:02:38.9]} 7... a6 {[%clk 0:03:02]} 8. g4
{[%clk 0:02:38.2]} 8... Bg6 {[%clk 0:03:01.5]} 9. Ne5 {[%clk 0:02:38.6]} 9...
Nbd7 {[%clk 0:03:01.5]} 10. Nxg6 {[%clk 0:02:38.4]} 10... hxg6 {[%clk
0:03:02.4]} 11. g5 {[%clk 0:02:34.2]} 11... Nd5 {[%clk 0:03:01.3]} 12. Nxd5
{[%clk 0:02:25.2]} 12... exd5 {[%clk 0:03:00.7]} 13. Bxd5 {[%clk 0:02:26.1]}
13... c6 {[%clk 0:02:52.4]} 14. Bc4 {[%clk 0:02:10.7]} 14... Nb6 {[%clk
0:02:28]} 15. Bb3 {[%clk 0:01:50]} 15... Qxg5 {[%clk 0:02:23.7]} 16. Qf3 {[%clk
0:01:48.9]} 16... Bb4+ {[%clk 0:02:11.1]} 17. Kf1 {[%clk 0:01:42.9]} 17... O-O
{[%clk 0:01:42.1]} 18. Rg1 {[%clk 0:01:27.2]} 18... Qb5+ {[%clk 0:01:29.3]} 19.
Kg2 {[%clk 0:01:27.3]} 19... a5 {[%clk 0:01:13.5]} 20. a4 {[%clk 0:01:02.6]}
20... Qd3 {[%clk 0:01:03.1]} 21. Qd1 {[%clk 0:01:02.2]} 21... Qe4+ {[%clk
0:00:58.7]} 22. Kf1 {[%clk 0:01:02.3]} 22... Nd5 {[%clk 0:00:56.2]} 23. Bc2
{[%clk 0:01:00.9]} 23... Qh4 {[%clk 0:00:53.3]} 24. Qg4 {[%clk 0:00:59]} 24...
Qf6 {[%clk 0:00:45]} 25. Kg2 {[%clk 0:00:53.6]} 25... Rfe8 {[%clk 0:00:44.9]}
26. Qf3 {[%clk 0:00:43.7]} 26... Qh4 {[%clk 0:00:41.5]} 27. Qg4 {[%clk
0:00:41.2]} 27... Qf6 {[%clk 0:00:41.3]} 28. Qf3 {[%clk 0:00:41.2]} 28... Qh4
{[%clk 0:00:41.3]} 29. e4 {[%clk 0:00:32]} 29... Nf6 {[%clk 0:00:37.2]} 30. Bf4
{[%clk 0:00:31]} 30... Nh5 {[%clk 0:00:35.5]} 31. Be5 {[%clk 0:00:28]} 31... f6
{[%clk 0:00:27.5]} 32. Bh2 {[%clk 0:00:25.7]} 32... Bd2 {[%clk 0:00:25.9]} 33.
Kh1 {[%clk 0:00:23.6]} 33... Bf4 {[%clk 0:00:21]} 34. Rg4 {[%clk 0:00:16.8]} 1-0

[Event "Early-Titled-Tuesday-Blitz-September-05-2023"]
[Site "Chess.com"]
[Date "2023.09.05"]
[Round "10"]
[White "aghasiyevkamal"]
[Black "Journey_to_GrandMaster_YT"]
[Result "1-0"]
[WhiteElo "2545"]
[BlackElo "2619"]
[TimeControl "180+1"]
[EndTime "9:54:08 PDT"]
[Termination "aghasiyevkamal won by resignation"]

1. d4 {[%clk 0:02:56.1]} 1... d6 {[%clk 0:03:00.9]} 2. e4 {[%clk 0:02:54.3]}
2... Nf6 {[%clk 0:03:01.2]} 3. Bd3 {[%clk 0:02:51.7]} 3... e5 {[%clk 0:03:01.5]}
4. c3 {[%clk 0:02:50.7]} 4... g6 {[%clk 0:03:01.2]} 5. Nf3 {[%clk 0:02:50.8]}
5... Nbd7 {[%clk 0:03:00.3]} 6. O-O {[%clk 0:02:48.9]} 6... Bg7 {[%clk
0:03:00.4]} 7. h3 {[%clk 0:02:48.8]} 7... O-O {[%clk 0:02:59.7]} 8. Bg5 {[%clk
0:02:39]} 8... h6 {[%clk 0:02:59]} 9. Be3 {[%clk 0:02:32.8]} 9... Re8 {[%clk
0:02:58.2]} 10. Nbd2 {[%clk 0:02:27.5]} 10... exd4 {[%clk 0:02:58]} 11. cxd4
{[%clk 0:02:27.1]} 11... c5 {[%clk 0:02:58.6]} 12. Nc4 {[%clk 0:02:17.7]} 12...
cxd4 {[%clk 0:02:52.5]} 13. Bxd4 {[%clk 0:02:17.1]} 13... Nc5 {[%clk 0:02:28.8]}
14. Bxc5 {[%clk 0:02:15.2]} 14... dxc5 {[%clk 0:02:28]} 15. e5 {[%clk
0:02:14.6]} 15... Nd7 {[%clk 0:02:10.9]} 16. Nd6 {[%clk 0:02:02.4]} 16... Re7
{[%clk 0:02:10.1]} 17. Bc4 {[%clk 0:02:02.1]} 17... Nxe5 {[%clk 0:01:35.5]} 18.
Nxe5 {[%clk 0:01:57.5]} 18... Bxe5 {[%clk 0:01:34.7]} 19. Nxf7 {[%clk
0:01:56.6]} 19... Qxd1 {[%clk 0:01:24.3]} 20. Nxe5+ {[%clk 0:01:56]} 20... Kg7
{[%clk 0:01:20.9]} 21. Raxd1 {[%clk 0:01:54.8]} 21... Rxe5 {[%clk 0:01:21.2]}
22. Rd8 {[%clk 0:01:53.9]} 22... Re4 {[%clk 0:00:54.7]} 23. b3 {[%clk 0:01:51]}
23... Rd4 {[%clk 0:00:53.9]} 24. Rg8+ {[%clk 0:01:48.5]} 24... Kh7 {[%clk
0:00:53.3]} 25. Re8 {[%clk 0:01:44.2]} 25... b5 {[%clk 0:00:35.6]} 26. Bxb5
{[%clk 0:01:42.2]} 26... Rd6 {[%clk 0:00:28.8]} 27. Rfe1 {[%clk 0:01:40]} 27...
h5 {[%clk 0:00:25.2]} 28. h4 {[%clk 0:01:36.5]} 28... g5 {[%clk 0:00:23]} 29.
hxg5 {[%clk 0:01:32.3]} 29... Kg6 {[%clk 0:00:22.1]} 30. f4 {[%clk 0:01:30.8]}
30... Bb7 {[%clk 0:00:19.1]} 31. R8e6+ {[%clk 0:01:11.7]} 31... Rxe6 {[%clk
0:00:19.1]} 32. Rxe6+ {[%clk 0:01:12.6]} 32... Kf5 {[%clk 0:00:20]} 33. Rf6+
{[%clk 0:01:13]} 33... Kg4 {[%clk 0:00:20.1]} 34. g6 {[%clk 0:01:06.7]} 34...
Rd8 {[%clk 0:00:10.6]} 35. g7 {[%clk 0:01:05.4]} 35... Rd1+ {[%clk 0:00:10.3]}
36. Bf1 {[%clk 0:01:01.1]} 36... Bd5 {[%clk 0:00:06.6]} 37. Rd6 {[%clk
0:01:00.5]} 37... Kxf4 {[%clk 0:00:02.5]} 38. Rxd5 {[%clk 0:00:59.5]} 38... Rxd5
{[%clk 0:00:03.4]} 39. g8=Q {[%clk 0:00:58.4]} 39... Rd1 {[%clk 0:00:03.8]} 40.
Qc4+ {[%clk 0:00:56.8]} 40... Ke3 {[%clk 0:00:03.2]} 41. Qxc5+ {[%clk
0:00:56.3]} 41... Kd2 {[%clk 0:00:04.1]} 42. Qxa7 {[%clk 0:00:53.9]} 42... h4
{[%clk 0:00:03.6]} 43. b4 {[%clk 0:00:53.2]} 43... Rb1 {[%clk 0:00:02.2]} 44.
Qd4+ {[%clk 0:00:52.1]} 1-0

[Event "Early-Titled-Tuesday-Blitz-September-05-2023"]
[Site "Chess.com"]
[Date "2023.09.05"]
[Round "10"]
[White "Roedor"]
[Black "alpltl"]
[Result "0-1"]
[WhiteElo "2436"]
[BlackElo "2366"]
[TimeControl "180+1"]
[EndTime "9:54:08 PDT"]
[Termination "alpltl won on time"]

1. d4 {[%clk 0:03:00.9]} 1... g6 {[%clk 0:02:58.9]} 2. Nf3 {[%clk 0:02:58.4]}
2... Bg7 {[%clk 0:02:59.2]} 3. g3 {[%clk 0:02:58]} 3... f5 {[%clk 0:02:59]} 4.
Bg2 {[%clk 0:02:58.2]} 4... Nf6 {[%clk 0:02:59.3]} 5. O-O {[%clk 0:02:58.8]}
5... O-O {[%clk 0:02:59.7]} 6. b3 {[%clk 0:02:59.4]} 6... d6 {[%clk 0:02:59.7]}
7. Bb2 {[%clk 0:02:59.9]} 7... Nc6 {[%clk 0:02:58.9]} 8. Nbd2 {[%clk 0:02:59.6]}
8... e5 {[%clk 0:02:58.9]} 9. dxe5 {[%clk 0:02:57.7]} 9... Ng4 {[%clk
0:02:58.8]} 10. Nc4 {[%clk 0:02:57.1]} 10... Be6 {[%clk 0:02:57.3]} 11. exd6
{[%clk 0:02:50.3]} 11... Bxc4 {[%clk 0:02:53.4]} 12. Bxg7 {[%clk 0:02:48.6]}
12... Bxe2 {[%clk 0:02:41.2]} 13. Qxe2 {[%clk 0:02:45.4]} 13... Kxg7 {[%clk
0:02:40.6]} 14. dxc7 {[%clk 0:02:23]} 14... Qxc7 {[%clk 0:02:40.5]} 15. h3
{[%clk 0:02:23.4]} 15... Nf6 {[%clk 0:02:40]} 16. Ng5 {[%clk 0:02:23.7]} 16...
Nd4 {[%clk 0:02:35.3]} 17. Ne6+ {[%clk 0:02:18]} 17... Nxe6 {[%clk 0:02:34.2]}
18. Qxe6 {[%clk 0:02:18.9]} 18... f4 {[%clk 0:02:28.2]} 19. g4 {[%clk
0:02:11.4]} 19... h6 {[%clk 0:02:27.8]} 20. Rfe1 {[%clk 0:02:05.2]} 20... Rf7
{[%clk 0:02:27.3]} 21. Qc4 {[%clk 0:01:48.5]} 21... Qxc4 {[%clk 0:02:22.1]} 22.
bxc4 {[%clk 0:01:49.4]} 22... Rc8 {[%clk 0:02:22.5]} 23. Bf1 {[%clk 0:01:37.7]}
23... b6 {[%clk 0:02:18.7]} 24. a4 {[%clk 0:01:36.1]} 24... Rc5 {[%clk 0:02:17]}
25. a5 {[%clk 0:01:19.3]} 25... bxa5 {[%clk 0:02:10.5]} 26. Re6 {[%clk
0:01:18.2]} 26... Nd7 {[%clk 0:01:56.4]} 27. Ra6 {[%clk 0:01:16.2]} 27... Ne5
{[%clk 0:01:36.8]} 28. R1xa5 {[%clk 0:01:14]} 28... Rfc7 {[%clk 0:01:35.8]} 29.
Rxc5 {[%clk 0:01:11.4]} 29... Rxc5 {[%clk 0:01:35.6]} 30. Rxa7+ {[%clk
0:01:11.6]} 30... Kf6 {[%clk 0:01:36.3]} 31. Bd3 {[%clk 0:00:42.5]} 31... h5
{[%clk 0:01:11.2]} 32. gxh5 {[%clk 0:00:36.6]} 32... gxh5 {[%clk 0:01:12.1]} 33.
h4 {[%clk 0:00:22.5]} 33... Nf3+ {[%clk 0:01:10.7]} 34. Kf1 {[%clk 0:00:20.7]}
34... Nxh4 {[%clk 0:01:10.9]} 35. Ra6+ {[%clk 0:00:17.2]} 35... Kg5 {[%clk
0:01:09.7]} 36. Rd6 {[%clk 0:00:15.3]} 36... Kg4 {[%clk 0:00:54.2]} 37. Rd5
{[%clk 0:00:11]} 37... Rc7 {[%clk 0:00:53.7]} 38. c5 {[%clk 0:00:10.8]} 38... f3
{[%clk 0:00:44.7]} 39. Bb5 {[%clk 0:00:05.6]} 39... Ng2 {[%clk 0:00:44.6]} 40.
Bd7+ {[%clk 0:00:05.2]} 40... Kh4 {[%clk 0:00:39.5]} 41. c6 {[%clk 0:00:05.4]}
41... Nf4 {[%clk 0:00:39.6]} 42. Rd4 {[%clk 0:00:05.2]} 42... Kg5 {[%clk
0:00:39.9]} 43. c4 {[%clk 0:00:02.6]} 43... h4 {[%clk 0:00:40]} 0-1

[Event "Early-Titled-Tuesday-Blitz-September-05-2023"]
[Site "Chess.com"]
[Date "2023.09.05"]
[Round "10"]
[White "mishanick"]
[Black "Zkid"]
[Result "1-0"]
[WhiteElo "3062"]
[BlackElo "2881"]
[TimeControl "180+1"]
[EndTime "9:54:11 PDT"]
[Termination "mishanick won by resignation"]

1. d4 {[%clk 0:03:00.9]} 1... d5 {[%clk 0:02:59.9]} 2. c4 {[%clk 0:03:01.2]}
2... dxc4 {[%clk 0:03:00.8]} 3. e4 {[%clk 0:03:00.7]} 3... Nf6 {[%clk
0:03:01.1]} 4. e5 {[%clk 0:03:00.9]} 4... Nd5 {[%clk 0:03:01.8]} 5. Bxc4 {[%clk
0:03:01.6]} 5... Nc6 {[%clk 0:03:02.4]} 6. Ne2 {[%clk 0:03:01.8]} 6... Bf5
{[%clk 0:03:02.2]} 7. O-O {[%clk 0:03:01]} 7... e6 {[%clk 0:03:02.5]} 8. Nbc3
{[%clk 0:02:59.3]} 8... Nb6 {[%clk 0:03:01.7]} 9. Bb5 {[%clk 0:02:58.6]} 9... a6
{[%clk 0:02:58.4]} 10. Bxc6+ {[%clk 0:02:54.4]} 10... bxc6 {[%clk 0:02:59.3]}
11. Ng3 {[%clk 0:02:53.6]} 11... Bg6 {[%clk 0:02:58.2]} 12. Be3 {[%clk
0:02:53.4]} 12... c5 {[%clk 0:02:47.4]} 13. dxc5 {[%clk 0:02:43.1]} 13... Qxd1
{[%clk 0:02:48.3]} 14. Rfxd1 {[%clk 0:02:42.8]} 14... Nc4 {[%clk 0:02:48.8]} 15.
c6 {[%clk 0:02:42.7]} 15... Nxe5 {[%clk 0:02:18.1]} 16. Rac1 {[%clk 0:02:31.1]}
16... Nd3 {[%clk 0:02:01.1]} 17. Rc2 {[%clk 0:02:31.1]} 17... O-O-O {[%clk
0:01:53.7]} 18. Nge4 {[%clk 0:02:19.4]} 18... Be7 {[%clk 0:01:51]} 19. Rcd2
{[%clk 0:02:06.1]} 19... Ne5 {[%clk 0:01:04.9]} 20. Bc5 {[%clk 0:02:03.7]} 20...
Nxc6 {[%clk 0:00:58.1]} 21. Bxe7 {[%clk 0:02:03.5]} 21... Nxe7 {[%clk
0:00:55.9]} 22. Nc5 {[%clk 0:02:01.9]} 22... Rxd2 {[%clk 0:00:50.8]} 23. Rxd2
{[%clk 0:02:02.8]} 23... a5 {[%clk 0:00:51.3]} 24. Rd7 {[%clk 0:01:47.4]} 24...
Nd5 {[%clk 0:00:30.8]} 25. Nxd5 {[%clk 0:01:46.4]} 25... exd5 {[%clk 0:00:31.7]}
26. Rxd5 {[%clk 0:01:46.6]} 26... Re8 {[%clk 0:00:32.3]} 27. Kf1 {[%clk
0:01:47]} 27... c6 {[%clk 0:00:28.9]} 28. Rd2 {[%clk 0:01:35.7]} 28... Re5
{[%clk 0:00:25.7]} 29. Na4 {[%clk 0:01:34.4]} 29... Kc7 {[%clk 0:00:20.7]} 30.
Nc3 {[%clk 0:01:34.6]} 30... f6 {[%clk 0:00:18.6]} 31. f3 {[%clk 0:01:34.7]}
31... Bf7 {[%clk 0:00:17.5]} 32. Kf2 {[%clk 0:01:35.4]} 32... g5 {[%clk
0:00:16.9]} 33. Rd4 {[%clk 0:01:33.5]} 33... c5 {[%clk 0:00:14.8]} 34. Ra4
{[%clk 0:01:26.6]} 34... Kb6 {[%clk 0:00:14.4]} 35. a3 {[%clk 0:01:23.7]} 35...
f5 {[%clk 0:00:12.7]} 36. f4 {[%clk 0:01:19.3]} 36... gxf4 {[%clk 0:00:13]} 37.
Rxf4 {[%clk 0:01:19.9]} 37... c4 {[%clk 0:00:12]} 38. Rh4 {[%clk 0:01:17.9]}
38... h5 {[%clk 0:00:11.9]} 39. Rd4 {[%clk 0:01:17.7]} 39... Kc5 {[%clk
0:00:10]} 40. Rd7 {[%clk 0:01:18]} 40... Bd5 {[%clk 0:00:08.5]} 41. Rh7 {[%clk
0:01:12.1]} 41... f4 {[%clk 0:00:06.9]} 42. Rh8 {[%clk 0:01:12.7]} 42... Bc6
{[%clk 0:00:06.2]} 43. Rf8 {[%clk 0:01:12.6]} 43... f3 {[%clk 0:00:04.9]} 44.
gxf3 {[%clk 0:01:10.1]} 44... h4 {[%clk 0:00:04.1]} 45. Rf4 {[%clk 0:01:08]}
45... Re7 {[%clk 0:00:02.6]} 46. Rxh4 {[%clk 0:01:06.6]} 46... Rb7 {[%clk
0:00:03.3]} 47. Rh5+ {[%clk 0:01:05.1]} 47... Kd4 {[%clk 0:00:02.6]} 48. Ne2+
{[%clk 0:00:57.1]} 48... Kd3 {[%clk 0:00:02.9]} 49. Rh6 {[%clk 0:00:57.8]} 49...
Bd5 {[%clk 0:00:01.3]} 50. Rd6 {[%clk 0:00:57.1]} 50... Rb5 {[%clk 0:00:01.6]}
51. Rxd5+ {[%clk 0:00:55.7]} 51... Rxd5 {[%clk 0:00:01.5]} 52. Nf4+ {[%clk
0:00:56.4]} 52... Kc2 {[%clk 0:00:02]} 53. Nxd5 {[%clk 0:00:57]} 53... Kxb2
{[%clk 0:00:02.9]} 54. h4 {[%clk 0:00:57.5]} 54... c3 {[%clk 0:00:03.2]} 55.
Nxc3 {[%clk 0:00:57.3]} 55... Kxc3 {[%clk 0:00:04.1]} 56. h5 {[%clk 0:00:58.1]}
1-0

[Event "Early-Titled-Tuesday-Blitz-September-05-2023"]
[Site "Chess.com"]
[Date "2023.09.05"]
[Round "10"]
[White "ChessQueen"]
[Black "MusicCityMaster"]
[Result "0-1"]
[WhiteElo "2751"]
[BlackElo "2418"]
[TimeControl "180+1"]
[EndTime "9:54:11 PDT"]
[Termination "MusicCityMaster won by resignation"]

1. e4 {[%clk 0:03:00.9]} 1... c5 {[%clk 0:02:59.7]} 2. c3 {[%clk 0:03:00.7]}
2... Qa5 {[%clk 0:02:57.7]} 3. Nf3 {[%clk 0:02:58.7]} 3... g6 {[%clk 0:02:56.4]}
4. Na3 {[%clk 0:02:58.3]} 4... Bg7 {[%clk 0:02:55.2]} 5. Nc4 {[%clk 0:02:53.9]}
5... Qc7 {[%clk 0:02:55.3]} 6. d4 {[%clk 0:02:51.5]} 6... Nf6 {[%clk 0:02:37.3]}
7. e5 {[%clk 0:02:46.2]} 7... Nd5 {[%clk 0:02:37.1]} 8. dxc5 {[%clk 0:02:25.9]}
8... Qxc5 {[%clk 0:02:16.9]} 9. b4 {[%clk 0:02:25.2]} 9... Qc6 {[%clk
0:02:15.1]} 10. Nd4 {[%clk 0:02:22.1]} 10... Nxc3 {[%clk 0:01:57]} 11. Nxc6
{[%clk 0:02:12.3]} 11... Nxd1 {[%clk 0:01:56.8]} 12. Nxe7 {[%clk 0:01:54.8]}
12... Kxe7 {[%clk 0:01:52.1]} 13. Kxd1 {[%clk 0:01:54.3]} 13... Nc6 {[%clk
0:01:47.2]} 14. Bg5+ {[%clk 0:01:48.3]} 14... Ke6 {[%clk 0:01:38.2]} 15. f4
{[%clk 0:01:47.9]} 15... h6 {[%clk 0:01:26.3]} 16. Bh4 {[%clk 0:01:45.5]} 16...
g5 {[%clk 0:01:26.6]} 17. Bg3 {[%clk 0:01:42.5]} 17... gxf4 {[%clk 0:01:25.3]}
18. Bxf4 {[%clk 0:01:42.8]} 18... Nxe5 {[%clk 0:01:24]} 19. Nxe5 {[%clk
0:01:38.1]} 19... Bxe5 {[%clk 0:01:24.9]} 20. Bxe5 {[%clk 0:01:23.1]} 20... Kxe5
{[%clk 0:01:24.6]} 21. Rc1 {[%clk 0:01:18]} 21... d5 {[%clk 0:01:13.1]} 22. Rc7
{[%clk 0:01:17.7]} 22... Rf8 {[%clk 0:01:12.5]} 23. Be2 {[%clk 0:01:06.7]} 23...
Kd6 {[%clk 0:01:11.1]} 24. Rc3 {[%clk 0:01:00.4]} 24... Bf5 {[%clk 0:01:07]} 25.
Rf1 {[%clk 0:00:59.1]} 25... Be4 {[%clk 0:01:05.8]} 26. Rf6+ {[%clk 0:00:56.4]}
26... Ke5 {[%clk 0:01:04.3]} 27. Rxh6 {[%clk 0:00:54]} 27... Rac8 {[%clk
0:01:04.2]} 28. Rhh3 {[%clk 0:00:28.7]} 28... f5 {[%clk 0:00:57.3]} 29. Rxc8
{[%clk 0:00:18.6]} 29... Rxc8 {[%clk 0:00:56.6]} 30. Rh7 {[%clk 0:00:19.2]}
30... d4 {[%clk 0:00:55.3]} 31. g4 {[%clk 0:00:15.8]} 31... d3 {[%clk 0:00:50]}
32. Bxd3 {[%clk 0:00:13.8]} 32... Bxd3 {[%clk 0:00:48.8]} 33. Rxb7 {[%clk
0:00:14.4]} 33... fxg4 {[%clk 0:00:48.6]} 34. Rxa7 {[%clk 0:00:14.5]} 34... Rh8
{[%clk 0:00:45.8]} 35. Rg7 {[%clk 0:00:12.5]} 35... Be4 {[%clk 0:00:39.8]} 36.
Ke1 {[%clk 0:00:08.6]} 36... Bf3 {[%clk 0:00:38.2]} 37. a4 {[%clk 0:00:07.7]}
37... Rxh2 {[%clk 0:00:37.4]} 38. a5 {[%clk 0:00:08.3]} 38... Ra2 {[%clk
0:00:35]} 39. Rg6 {[%clk 0:00:05.8]} 39... Kf4 {[%clk 0:00:31.8]} 40. a6 {[%clk
0:00:05.9]} 40... Ke3 {[%clk 0:00:32.3]} 41. Re6+ {[%clk 0:00:04.3]} 41... Be4
{[%clk 0:00:32.8]} 42. Rxe4+ {[%clk 0:00:02.1]} 42... Kxe4 {[%clk 0:00:31.2]}
43. b5 {[%clk 0:00:03]} 43... g3 {[%clk 0:00:28.6]} 44. Kf1 {[%clk 0:00:01.8]}
44... Kf3 {[%clk 0:00:28.6]} 0-1

[Event "Early-Titled-Tuesday-Blitz-September-05-2023"]
[Site "Chess.com"]
[Date "2023.09.05"]
[Round "10"]
[White "emeli_chess"]
[Black "cthulhuuu"]
[Result "0-1"]
[WhiteElo "2370"]
[BlackElo "2459"]
[TimeControl "180+1"]
[EndTime "9:54:11 PDT"]
[Termination "cthulhuuu won by resignation"]

1. d4 {[%clk 0:03:00.9]} 1... Nf6 {[%clk 0:03:00.7]} 2. c4 {[%clk 0:03:00.6]}
2... e5 {[%clk 0:03:01]} 3. dxe5 {[%clk 0:03:00.2]} 3... Ng4 {[%clk 0:03:01.2]}
4. Bf4 {[%clk 0:02:59.7]} 4... Nc6 {[%clk 0:03:00.4]} 5. Nf3 {[%clk 0:02:59.3]}
5... Bb4+ {[%clk 0:03:00.3]} 6. Nbd2 {[%clk 0:02:59.2]} 6... Qe7 {[%clk
0:03:00.2]} 7. e3 {[%clk 0:02:59.6]} 7... Ncxe5 {[%clk 0:02:57.1]} 8. Nxe5
{[%clk 0:02:59.9]} 8... Nxe5 {[%clk 0:02:58]} 9. Be2 {[%clk 0:03:00.3]} 9... d6
{[%clk 0:02:52.5]} 10. O-O {[%clk 0:03:00.3]} 10... a5 {[%clk 0:02:52.7]} 11.
Nb1 {[%clk 0:02:59.5]} 11... O-O {[%clk 0:02:50.5]} 12. a3 {[%clk 0:02:58.9]}
12... Bc5 {[%clk 0:02:50.7]} 13. Nc3 {[%clk 0:02:59.3]} 13... Be6 {[%clk
0:02:49.7]} 14. Nd5 {[%clk 0:02:53.1]} 14... Bxd5 {[%clk 0:02:46.4]} 15. cxd5
{[%clk 0:02:48.5]} 15... g5 {[%clk 0:02:46.6]} 16. Bg3 {[%clk 0:02:47.4]} 16...
f5 {[%clk 0:02:46.9]} 17. h3 {[%clk 0:02:37.2]} 17... f4 {[%clk 0:02:45.4]} 18.
exf4 {[%clk 0:02:37.2]} 18... gxf4 {[%clk 0:02:45.1]} 19. Bh2 {[%clk 0:02:37.5]}
19... Qh4 {[%clk 0:02:00.1]} 20. Bf3 {[%clk 0:02:23.8]} 20... Kh8 {[%clk
0:01:49.3]} 21. b4 {[%clk 0:02:14]} 21... axb4 {[%clk 0:01:18.3]} 22. axb4
{[%clk 0:02:14.1]} 22... Rxa1 {[%clk 0:01:18.3]} 23. Qxa1 {[%clk 0:02:14.3]}
23... Bxb4 {[%clk 0:01:16.4]} 24. Be4 {[%clk 0:02:02.3]} 24... Bc5 {[%clk
0:01:14.2]} 25. Kh1 {[%clk 0:01:47.7]} 25... Bxf2 {[%clk 0:01:10.2]} 26. Qb2
{[%clk 0:01:36.5]} 26... Bg3 {[%clk 0:01:09.5]} 27. Qxb7 {[%clk 0:01:31.5]}
27... Bxh2 {[%clk 0:01:06.8]} 28. Kxh2 {[%clk 0:01:31.3]} 28... Qg3+ {[%clk
0:01:07.3]} 29. Kh1 {[%clk 0:01:31.6]} 29... f3 {[%clk 0:01:07.8]} 30. Bxf3
{[%clk 0:01:24.6]} 30... Nxf3 {[%clk 0:00:57.9]} 31. Rxf3 {[%clk 0:01:24.6]}
31... Rxf3 {[%clk 0:00:53]} 32. gxf3 {[%clk 0:01:24.9]} 32... Qxh3+ {[%clk
0:00:52.2]} 33. Kg1 {[%clk 0:01:25.1]} 33... Qg3+ {[%clk 0:00:53.1]} 34. Kh1
{[%clk 0:01:24.8]} 34... Qxf3+ {[%clk 0:00:53.7]} 35. Kh2 {[%clk 0:01:25.3]}
35... Qf7 {[%clk 0:00:54.6]} 36. Kh3 {[%clk 0:01:17.6]} 36... Kg7 {[%clk
0:00:54.5]} 37. Kh4 {[%clk 0:01:15.9]} 37... Kg6 {[%clk 0:00:42.7]} 38. Qb1+
{[%clk 0:01:12.4]} 38... Qf5 {[%clk 0:00:42.5]} 39. Qb7 {[%clk 0:01:09.4]} 39...
h5 {[%clk 0:00:38]} 40. Kg3 {[%clk 0:01:09.2]} 40... Qf7 {[%clk 0:00:29.5]} 41.
Qb1+ {[%clk 0:01:05.3]} 41... Kf6 {[%clk 0:00:28.8]} 42. Qb2+ {[%clk 0:00:53.6]}
42... Ke7 {[%clk 0:00:28.9]} 43. Qd4 {[%clk 0:00:50.7]} 43... Qg6+ {[%clk
0:00:21.8]} 44. Kh4 {[%clk 0:00:49.7]} 44... Qg4+ {[%clk 0:00:22.1]} 45. Qxg4
{[%clk 0:00:49.7]} 45... hxg4 {[%clk 0:00:23]} 46. Kxg4 {[%clk 0:00:50.3]} 46...
Kd7 {[%clk 0:00:22.1]} 47. Kf5 {[%clk 0:00:49.7]} 47... Kc8 {[%clk 0:00:22.7]}
48. Ke6 {[%clk 0:00:48.7]} 48... Kb7 {[%clk 0:00:23.6]} 49. Kd7 {[%clk
0:00:48.1]} 49... Kb6 {[%clk 0:00:24.5]} 50. Kc8 {[%clk 0:00:48.3]} 50... Kc5
{[%clk 0:00:25.3]} 51. Kxc7 {[%clk 0:00:48.6]} 51... Kxd5 {[%clk 0:00:25.8]} 0-1